Cogmind - Beta 17 @@@ ROGUE MODE // 2026.08.06 @ 17:24:59 Player: Momo Result: Destroyed by L-31 Rogue with Katana Performance ------------- Evolutions (1) 500 Regions Visited (4) 800 Robots Destroyed (28) 140 Value Destroyed (693) 693 Prototype IDs (4) 80 Alien Tech Used (0) 0 Bonus (0) 0 TOTAL SCORE: 2213 Bonus ------- None Cogmind --------- Core Integrity 0/400 Matter 263/300 Energy 288/290 System Corruption 0% Temperature Cool (6) Movement Flying (34) Location -9/Mines Parts ------- > --- POWER (1) -------- Improved Deuterium Engine > --- PROPULSION (3) --- Improved Flight Unit Improved Flight Unit Improved Flight Unit > --- UTILITY (3) ------ Sensor Array Signal Interpreter Transmission Jammer > --- WEAPON (2) ------- Hammer > --- INVENTORY (5) ---- Improved Flight Unit Experimental Sensor Array Melee Analysis Suite Gauss Cannon Proton Missile Launcher Peak State ------------ > --- POWER ------------ Improved Deuterium Engine > --- PROPULSION ------- Improved Flight Unit Improved Flight Unit Improved Flight Unit > --- UTILITY ---------- Experimental Sensor Array Signal Interpreter Transmission Jammer > --- WEAPON ----------- Rocket Launcher Hammer > --- INVENTORY -------- Improved Flight Unit Sensor Array Hardened Light Armor Plating Gauss Cannon Proton Missile Launcher [Rating: 31] Favorites ----------- Power Improved Deuterium Engine Engine Improved Deuterium Engine Propulsion Improved Flight Unit Hover Unit Hover Unit Flight Unit Improved Flight Unit Utility Signal Interpreter Device Sensor Array Processor Signal Interpreter Hackware Hacking Suite Protection Light Armor Plating Weapon Hammer Energy Gun Spread Laser Ballistic Gun Light Assault Rifle Launcher Grenade Launcher Impact Weapon Hammer Build | -11 -10 -10 -9 -9 ------- Run | Yrd Mat Min Mat Min Slots Evolved 2 | . . . 2 . Power . | . . . . . Propulsion 1 | . . . 1 . Utility 1 | . . . 1 . Weapon . | . . . . . Parts Attached 25 | . 9 1 8 7 Power 2 | . 1 . . 1 Engine 2 | . 1 . . 1 Core . | . . . . . Reactor . | . . . . . Propulsion 6 | . 2 . 4 . Treads . | . . . . . Leg . | . . . . . Wheel . | . . . . . Hover 2 | . 2 . . . Flight 4 | . . . 4 . Utility 8 | . 3 . 3 2 Device 4 | . . . 2 2 Storage . | . . . . . Processor 2 | . 1 . 1 . Hackware 1 | . 1 . . . Protection 1 | . 1 . . . Artifact . | . . . . . Weapon 9 | . 3 1 1 4 Energy Gun 1 | . . . . 1 Energy Cannon . | . . . . . Ballistic Gun 1 | . 1 . . . Ballistic Cannon . | . . . . . Launcher 6 | . 1 1 1 3 Special Weapon . | . . . . . Impact Weapon 1 | . 1 . . . Slashing Weapon . | . . . . . Piercing Weapon . | . . . . . Special Melee Weapon . | . . . . . Unidentified Prototypes 2 | . . . 1 1 Parts Lost 7 | . . 2 3 2 Power . | . . . . . Propulsion 2 | . . 1 1 . Utility 3 | . . 1 1 1 Weapon 2 | . . . 1 1 Highest Loss Streak 2 | . . 2 2 1 To Critical Strikes . | . . . . . Average Backups 4 | . 3 5 4 4 Power . | . . . . . Propulsion . | . . . . 1 Utility 1 | . . 2 1 1 Weapon 2 | . 2 3 3 2 Tool/Special . | . . . . . Unused Backups 8 | . 3 . . 5 Power 1 | . 1 . . . Propulsion 1 | . . . . 1 Utility 3 | . 1 . . 2 Weapon 3 | . 1 . . 2 Tool/Special . | . . . . . Average Slot Usage (%) 61 | . 32 58 49 93 Engine 3 | . 2 . . 8 Hover 7 | . 5 17 4 . Flight 11 | . . . 6 33 Device 8 | . . . 13 19 Processor 9 | . 1 14 10 11 Hackware 3 | . 12 3 . . Protection 1 | . 4 . . . Launcher 6 | . 2 8 6 8 Impact Weapon 9 | . 1 14 7 11 Peak Build Rating 31 | . 7 7 16 31 Average Rating 9 | . 4 4 5 21 On Entrance 5 | . . 7 4 16 Avg Prop Armor Cover (%) 12 | . . 25 1 1 Naked Turns 19 | . 19 . . . Heaviest Build 21 | . 6 5 10 21 Greatest Support 15 | 3 12 12 15 15 Greatest Overweight (x) 1 | . 1 . 1 1 Average Overweight (x) . | . . . . . Largest Inventory Capacity 5 | 5 5 5 5 5 Average Capacity 5 | 5 5 5 5 5 Most Carried 5 | . 5 5 5 5 Average Carried 4 | . 3 5 4 4 Final Capacity 5 | 5 5 5 5 5 Final Carried 5 | . 5 5 5 5 Class Distribution -------------------- 92% | Mutant 4% | Scout Dominant Class ---------------- Mutant | -10/Materials Mutant | -10/Mines Mutant | -9/Materials Mutant | -9/Mines Resources | -11 -10 -10 -9 -9 ----------- Run | Yrd Mat Min Mat Min Matter Collected 690 | 193 170 20 35 272 Remotely . | . . . . . Salvage Created 514 | . 196 23 43 252 Parts 31 | . 10 . 1 20 Haulers Intercepted 1 | . . . 1 . Recyclers Shooed . | . . . . . Parts Field Recycled . | . . . . . Retrieved Matter . | . . . . . Parts Self-Destructed . | . . . . . Prevented . | . . . . . Parts Restored . | . . . . . Kills | -11 -10 -10 -9 -9 ------- Run | Yrd Mat Min Mat Min Combat Hostiles Destroyed 26 | . 9 . . 17 Melee 1 | . . . . 1 Guns 2 | . 2 . . . AOE 23 | . 7 . . 16 Classes Destroyed 5 | . 2 1 1 1 Tunneler 1 | . . 1 . . Hauler 1 | . . . 1 . Swarmer 13 | . 3 . . 10 Grunt 11 | . 6 . . 5 Duelist 2 | . . . . 2 Best Kill Streak 7 | . 4 1 1 7 Combat Bots Only 7 | . 4 . . 7 Max Kills in Single Turn 2 | . 2 1 1 2 Gunslinging . | . . . . . Exploded 2 | . 2 . . 2 Melee 1 | . . . . 1 Uniques/NPCs Destroyed . | . . . . . Combat | -11 -10 -10 -9 -9 -------- Run | Yrd Mat Min Mat Min Hostile Shots Fired 101 | . 22 4 49 26 Missed 34 | . 7 . 20 7 Hits 67 | . 15 4 29 19 Melee 2 | . . . . 2 Projectile 65 | . 15 4 29 17 AOE 4 | . . 4 . . Critical Strikes 1 | . . . 1 . Damage Taken 1142 | . 181 173 419 369 Core 581 | . 98 67 290 126 Absorbed by Shields . | . . . . . Core Remaining (%) 67 | 100 . 34 . . Volleys Fired 40 | . 21 . 1 18 Largest 1 | . 1 . 1 1 Hottest 39 | . 30 . 33 39 Shots Fired 40 | . 21 . 1 18 Gun 13 | . 13 . . . Cannon . | . . . . . Launcher 27 | . 8 . 1 18 Special . | . . . . . Kinetic 13 | . 13 . . . Thermal . | . . . . . Explosive 22 | . 8 . 1 13 Electromagnetic 5 | . . . . 5 Robot Hit Streak 5 | . 5 . . 5 Robot Miss Streak 2 | . 2 . . 1 Penetration Max . | . . . . . Secondary Targets . | . . . . . Shots Hit Robots 32 | . 15 2 1 14 Core Hits 40 | . 18 . . 22 Critical Kills . | . . . . . Critical Parts Destroyed . | . . . . . Critical Strikes . | . . . . . Melee Attacks 10 | . 1 3 4 2 Impact 10 | . 1 3 4 2 Slashing . | . . . . . Piercing . | . . . . . Sneak Attacks 2 | . . 1 1 . Combat Hostiles . | . . . . . Follow-up Attacks . | . . . . . Damage Inflicted 2065 | . 552 63 70 1380 Guns 81 | . 81 . . . Cannons . | . . . . . Explosions 1807 | . 471 . . 1336 Melee 177 | . . 63 70 44 Ramming . | . . . . . Kinetic 81 | . 81 . . . Thermal . | . . . . . Explosive 1600 | . 471 . . 1129 Electromagnetic 207 | . . . . 207 Impact 177 | . . 63 70 44 Slashing . | . . . . . Piercing . | . . . . . Highest Corruption . | . . . . . Average Corruption . | . . . . . Corruption Purged . | . . . . . Corruption Blocked . | . . . . . Overload Shots . | . . . . . Overflow Damage 141 | . 20 13 10 98 Projectiles . | . . . . . Explosions 118 | . 20 . . 98 Melee 23 | . . 13 10 . Knockbacks . | . . . . . Impact . | . . . . . Kinetic . | . . . . . Secondary . | . . . . . Self-Inflicted Damage 142 | . . . . 142 Shots 6 | . . . . 6 Rammed . | . . . . . Targets Rammed . | . . . . . Kicked . | . . . . . Crushed . | . . . . . Highest Temperature 26 | . 10 . . 26 Average Temperature 7 | . 4 . . 8 Received Heat Transfer 276 | . 96 . 135 45 Siege Activations . | . . . . . Martial Activations . | . . . . . Shielding Activations . | . . . . . Robots Disrupted . | . . . . . Combat Hostiles . | . . . . . Robots Corrupted 2 | . . 1 1 . Combat Hostiles . | . . . . . Parts Fried 7 | . . 3 2 2 Impact Corruptions 2 | . . 1 1 . Robots Melted . | . . . . . Combat Hostiles . | . . . . . Parts Melted . | . . . . . Heat Transferred . | . . . . . Parts Sabotaged . | . . . . . Parts Stolen . | . . . . . Parts Stripped . | . . . . . Power Chain Reactions . | . . . . . Alert | -11 -10 -10 -9 -9 ------- Run | Yrd Mat Min Mat Min Maximum Alert Level 1 | . 1 . . 1 Low Security (%) 60 | 100 41 100 100 6 Level 1 39 | . 58 . . 93 Level 2 . | . . . . . Level 3 . | . . . . . Level 4 . | . . . . . Level 5 . | . . . . . High Security . | . . . . . Max Security . | . . . . . Peak Influence 365 | . 255 99 140 365 Initial 79 | . . 79 . 50 Average 126 | . 162 21 36 269 Influence Increases 1186 | . 375 35 227 549 Destroy 0b10 Robot/C 520 | . 180 . . 340 Destroy 0b10 Robot/NC 10 | . . 5 5 . Destroy Leader 92 | . 30 . 2 60 Successful Hack 53 | . 51 . 2 . Disable Machine 90 | . 30 . 45 15 Destroy Structure 136 | . 24 . 8 104 Lose Combat Pursuer 285 | . 60 30 165 30 Influence Decreases 837 | . 170 240 97 330 Entered New Map 206 | . . 126 . 80 Time Decay 579 | . 170 94 85 230 Lost Part 52 | . . 20 12 20 Squads Dispatched 2 | . 1 . . 1 Investigation 1 | . . . . 1 Extermination . | . . . . . Reinforcement 1 | . 1 . . . Assault . | . . . . . Garrison . | . . . . . Intercept . | . . . . . Searches Triggered . | . . . . . Construction Impeded . | . . . . . Haulers Reinforced . | . . . . . Active Scanning Responses . | . . . . . Cargo Convoy Interrupts . | . . . . . Stealth | -11 -10 -10 -9 -9 --------- Run | Yrd Mat Min Mat Min Distress Signals 5 | . 2 . 3 . Communications Jammed . | . . . . . Distress Signals . | . . . . . Times Spotted 52 | . 15 3 15 19 Peak Tracking Total 12 | . 6 2 12 4 Tactical Retreats 10 | . 3 1 5 1 Traps | -11 -10 -10 -9 -9 ------- Run | Yrd Mat Min Mat Min Traps Triggered . | . . . . . Indirectly . | . . . . . Trap Hack Attempts . | . . . . . Triggered . | . . . . . Disarmed . | . . . . . Reprogrammed . | . . . . . Reused . | . . . . . Traps Extracted . | . . . . . Installed . | . . . . . Triggered . | . . . . . Machines | -11 -10 -10 -9 -9 ---------- Run | Yrd Mat Min Mat Min Machines Disabled 6 | . 2 . 3 1 Max in Single Turn 2 | . 1 . 2 1 Machines Repaired . | . . . . . Machines Dismantled . | . . . . . Machines Sabotaged . | . . . . . Overloaded Fab Kills . | . . . . . Hacking | -11 -10 -10 -9 -9 --------- Run | Yrd Mat Min Mat Min Machines Accessed 15 | . 6 1 7 1 Terminals 13 | . 6 1 6 . Fabricators . | . . . . . Repair Stations . | . . . . . Recycling Units . | . . . . . Scanalyzers 1 | . . . 1 . Garrison Access . | . . . . . Total Hacks 36 | . 18 2 15 1 Successful 17 | . 10 . 6 1 Failed 19 | . 8 2 9 . Catastrophic 4 | . 1 . 3 . Database Lockouts . | . . . . . Manual 23 | . 11 2 10 . Terminals 30 | . 18 2 10 . Fabricators . | . . . . . Repair Stations . | . . . . . Recycling Units . | . . . . . Scanalyzers 5 | . . . 5 . Garrison Access . | . . . . . Terminal Hacks 3 | . 2 . . 1 Prototype ID Bank 1 | . 1 . . . Open Door 1 | . . . . 1 Registered Components 1 | . 1 . . . Fabricator Hacks . | . . . . . Repair Station Hacks . | . . . . . Recycling Unit Hacks . | . . . . . Scanalyzer 4 | . . . 4 . Retrieve Study 4 | . . . 4 . Garrison Access Hacks . | . . . . . Unauthorized Hacks 10 | . 8 . 2 . Terminals 10 | . 8 . 2 . Botnet 4 | . 3 . 1 . Operators 1 | . . . 1 . Skim 5 | . 5 . . . Fabricators . | . . . . . Repair Stations . | . . . . . Recycling Units . | . . . . . Scanalyzers . | . . . . . Garrison Access . | . . . . . Data Cores Recovered 1 | . 1 . . . Used . | . . . . . Hacking Detections 13 | . 6 1 6 . Full Trace Events . | . . . . . Feedback Events . | . . . . . Feedback Blocked . | . . . . . Robot Schematics Acquired . | . . . . . Robots Built . | . . . . . Authchips . | . . . . . Time . | . . . . . Total Robot Build Rating . | . . . . . Part Schematics Acquired . | . . . . . Parts Built . | . . . . . Authchips . | . . . . . Time . | . . . . . Total Part Build Rating . | . . . . . Part Studies Acquired 4 | . . . 4 . Parts Repaired . | . . . . . Time . | . . . . . Parts Recycled . | . . . . . Recycled Matter . | . . . . . Retrieved Matter . | . . . . . Retrieved Components . | . . . . . Parts Scanalyzed . | . . . . . Part Schematics Acquired . | . . . . . Parts Damaged . | . . . . . Bothacking | -11 -10 -10 -9 -9 ------------ Run | Yrd Mat Min Mat Min Used RIF Installer . | . . . . . Robots Hacked . | . . . . . Non-combat . | . . . . . Combat . | . . . . . Robot Hacks Applied . | . . . . . Relay Couplers Released . | . . . . . Fabnet Peak Effective % . | . . . . . Robots Rewired . | . . . . . Allies Hacked . | . . . . . Hacks Repelled . | . . . . . Allies | -11 -10 -10 -9 -9 -------- Run | Yrd Mat Min Mat Min Total Allies . | . . . . . Largest Group . | . . . . . Highest-Rated Group . | . . . . . Highest-Rated Ally . | . . . . . Total Orders . | . . . . . Ally Attacks . | . . . . . Total Damage . | . . . . . Kills . | . . . . . Allies Corrupted . | . . . . . Allies Melted . | . . . . . Intel | -11 -10 -10 -9 -9 ------- Run | Yrd Mat Min Mat Min Active Infowar (turns) 793 | . . . 307 486 Sensors 793 | . . . 307 486 Structural 129 | . . . 129 . Jamming 399 | . . . . 399 Robot Analysis Total . | . . . . . Derelict Logs Recovered 3 | . . 1 . 2 Drone Launches . | . . . . . Drone Recoveries . | . . . . . Exploration | -11 -10 -10 -9 -9 ------------- Run | Yrd Mat Min Mat Min Turns Passed 1671 | 17 357 464 347 486 Spaces Moved 2213 | 33 519 501 530 630 Core 933 | 33 415 266 219 . Treads . | . . . . . Legs . | . . . . . Wheels . | . . . . . Hover 523 | . 104 235 184 . Flight 757 | . . . 127 630 Fastest Speed 34 | 50 50 50 34 34 Average Speed 56 | 50 52 54 55 63 Slowest Speed 120 | 50 100 60 120 104 Overloaded Moves . | . . . . . Propulsion Burnouts . | . . . . . Robots Hopped . | . . . . . Potential Cave-ins . | . . . . . Cave-ins Triggered . | . . . . . Exploration Rate (%) 63 | 3 90 91 54 81 Regions Visited 4 Branch Regions 2 Pre-discovered Areas . | . . . . . Known Exits Taken 3 | . 1 1 1 . Unknown Exits Taken 1 | 1 . . . . Scrap Searched 4 | . . 2 . 2 Spaces Dug . | . . . . . Terrain Destroyed 155 | . 22 . 8 125 Melee . | . . . . . Projectile . | . . . . . AOE 155 | . 22 . 8 125 Terrain Rammed . | . . . . . Walls Destroyed . | . . . . . Machines Disabled . | . . . . . Actions | -11 -10 -10 -9 -9 --------- Run | Yrd Mat Min Mat Min Total 2573 | 32 583 687 573 698 Wait 241 | . 12 181 23 25 Move 2209 | 32 518 500 529 630 Hop . | . . . . . Pick Up 23 | . 13 1 3 6 Fast Attach 13 | . 3 1 6 3 Attach 12 | . 5 . 4 3 Detach 5 | . 3 . 1 1 Swap 4 | . 1 . . 3 Drop 16 | . 6 1 2 7 Fire 40 | . 21 . 1 18 Melee 10 | . 1 3 4 2 Ram . | . . . . . Kick . | . . . . . Crush . | . . . . . Escape Stasis . | . . . . . Rewire . | . . . . . Trap . | . . . . . Miscellaneous . | . . . . . Route ------- -11/Scrapyard -10/Materials (discovered 4 exits: *Mat x2 / *Min x2) -10/Mines (discovered 2 exits: *Mat x2) -9/Materials (discovered 2 exits: [*Mat] / *Min) -9/Mines (discovered 1 exit: [*Exi]) History --------- Turn | Location | Event 6 | -11/Scrapyard | Discovered new exit (range 12) 18 | -11/Scrapyard | Entered Materials 19 | -10/Materials | Met a group of wandering Federalists 45 | -10/Materials | Discovered new exit (range 10) 108 | -10/Materials | Discovered new exit (range 11) 244 | -10/Materials | Discovered new exit (range 13) 320 | -10/Materials | Discovered new exit (range 10) 337 | -10/Materials | Identified exit to Mines 357 | -10/Materials | Build established: Mutant 361 | -10/Materials | Learned Storage stockpile data 375 | -10/Materials | Entered Mines 380 | -10/Mines | Met a Derelict bent on vengeance 382 | -10/Mines | Discovered new exit (range 6) 411 | -10/Mines | Assembled infested the area 411 | -10/Mines | Learned 2 Materials zone layouts 416 | -10/Mines | Assisted by a Guerilla fighting off Assembled 482 | -10/Mines | Core integrity fell below 50% 536 | -10/Mines | Discovered new exit (range 15) 537 | -10/Mines | Received a Rocket Launcher from a helpful Derelict 838 | -10/Mines | Identified exit to Materials 839 | -10/Mines | Entered Materials 839 | -9/Materials | Evolved 2 slots: Propulsion x1, Utility x1 840 | -9/Materials | Identified exit to Mines 995 | -9/Materials | Discovered new exit (range 8) 1038 | -9/Materials | Core integrity fell below 50% 1186 | -9/Materials | Entered Mines 1203 | -9/Mines | Core integrity fell below 20% 1224 | -9/Mines | Destroyed 7 combat bots 1269 | -9/Mines | Met a Derelict shopkeep closing up shop 1289 | -9/Mines | Learned Materials stockpile data 1291 | -9/Mines | Deemed a non-threat by the Exiles lab entrance 1291 | -9/Mines | Discovered new exit (range 5) 1317 | -9/Mines | Found a damaged Exp. Sensor Array with a note attached 1319 | -9/Mines | Found Prototype Device 1320 | -9/Mines | Identified Exp. Sensor Array 1538 | -9/Mines | Learned Materials terminal intel 1672 | -9/Mines | Destroyed by L-31 Rogue with Katana Last Messages --------------- 01565_ S-10 Pest destroyed. 01565_ Destroyed Flight Unit. 01565_ S-10 Pest destroyed. 01565_ Destroyed Lgt. Ion Engine. 01571_ The unstable cave ceiling collapses. 01571_ S-10 Pest destroyed. 01571_ G-34 Mercenary destroyed. 01572_ Rocket Launcher+ destroyed. 01575_ The unstable cave ceiling collapses. 01577_ G-34 Mercenary destroyed. 01580_ The unstable cave ceiling collapses. 01583_ Lgt. Nuclear Core fried. 01583_ Particle Gun fried. 01583_ G-47 Trooper destroyed. 01594_ Acquired 45 matter. 01595_ Acquired 29 matter. 01625_ L-31 Rogue destroyed. 01649_ Acquired 53 matter. 01655_ Dropped Hrd. Light Armor Plating. 01656_ Acquired Melee Analysis Suite. Map ----- +----------------------------------------------------+ | ??????????###????????## #???? | | #???????## ###??????# ???? | | ###????## #??????# ???? | | #???## #?????## ???? | | ##### #?????## ???? | | ### ##???### #??? | | #### ### #????# #??? | | #?#### #????? #??? | | ######????? #?????? #??? | | #??????????? ??????? #??? | | #??????????? ???????# #??? | | ????????????? ???????# #??? | | ????????????? #???????# #??? | | ?????????????? #????????# #??? | | ?????????????? ????????# #??? | | ??????????????? ???????# #??? | | ?????##???????? ???????# #??? | | ????? ????????? ???????# #??? | | ????? #?????????????????# #??? | | ????? #?????????????????# #??? | | ????? #?????????????????# #??? | | ??### #?????????????????# #??? | | ### #?????????????????# #??? | | #####??????????????# #??? | | ### # ##?????????????# #??? | | ?## #???????#######@#??? | | ## #???????# x l #??? | | """ #???????#x#######??? | | """ #???????# #????????? | | """ #???????# #????????? | | ## #??##### #????????? | | ?##### #??#= * !#????????? | | ??????# #??#=#######??????? | | ###????# #??# #?## ##?????? | | #????######## #?# ##????? | | # ###### ### #????? | | # # ## #????? | | ???### = #????? | | ?????# ## ## ## #????? | | ?##### ## = ### ##????? | | ?# ########?????? | | ?# """ # #??????????? | | ?? """ # ## ##????????? | | ?? """ # # #????????? | | ?# """ # #????????? | | ?# ##### ##????????? | | ?######### ####?##?????????? | | ##????# #????????????? | | ##???# ## ## #????????????? | | ##??# ####### #????????????? | +----------------------------------------------------+ Best States ------------- Heat Dissipation 28 Energy Generation 16 Energy Capacity 290 Matter Stores 300 Matter Capacity 300 Sight Range 16 Robot Scan Range 14 Terrain Scan Density 10 Jamming Range 12 Armor Coverage 150 Evasion (%) 63 Offensive Hacking 10 Item Schematics ----------------- None Robot Schematics ------------------ None Fabricated ------------ Nothing Repaired ---------- Nothing Studied --------- EMP Blaster | -9/Materials | Hacked Rocket Launcher | -9/Materials | Hacked Hover Unit | -9/Materials | Hacked Hammer | -9/Materials | Hacked Alien Tech Used ----------------- None Achievements -------------- None Challenges ------------ None Game ------ Seed MissileVariableMount Manual? 0 Play Time 00:23:08 Cumulative 489.1 hours Start 2026.08.06 @ 16:34:16 End 2026.08.06 @ 17:24:59 Sessions 3 Manual Loads 0 Difficulty Rogue Special Mode None Game No. 250 Rogue 246 Adventurer 0 Explorer 4 Win Type - Total 27 Types 9/1/2/6/2/2/3/1/1/0 Lore% 69 Gallery% 75 Achievement% 62 Wizard Run 0 Options --------- Layout 1 ASCII 0 Keyboard 0 Movement Mouse Keybinds 0 Fullscreen 1 Font 24/Smallcaps Map View 50x35 Zoom Use 0% Tactical HUD 1 Map Filters NONE Filters NONE Steam 1 RUN: 115882a4-d070-4388-9a02-bfd0d6b1d4de